fUST/lending_fUST_20240202
["ID","MTS","AMOUNT","RATE_DAILY","PERIOD"]
[313173627,1706880632501,-2025.6532462,0.00019966,2]
[313173643,1706880638399,-1626.76,0.00019956,3]
[313173644,1706880638409,-1996.50298693,0.00019965,2]
[313173645,1706880638418,-78048.2130758,0.00019966,2]
[313173647,1706880641269,2715.47631265,0.00019964,5]
[313173674,1706880643437,-176363.29771238,0.00019966,2]
[313173675,1706880643448,-621.90621018,0.00019966,2]
[313173676,1706880643457,-200.0,0.0002,2]
[313173677,1706880643467,-323.68814175,0.0002,2]
[313173678,1706880643476,-166.857692,0.00020075,2]
[313173679,1706880643485,-184.0980345,0.00020115,2]
[313173680,1706880643597,-24900.0,0.00020154,2]
[313173681,1706880643607,-500.0,0.00020822,2]
[313173682,1706880643617,-250.17776677,0.00020822,2]
[313173683,1706880643627,-307.11833989,0.00020822,2]
[313173684,1706880643637,-500.0,0.00020822,2]
[313173685,1706880643648,-500.0,0.00020822,2]
[313173686,1706880643658,-630.02108124,0.00020822,2]
[313173687,1706880643669,-549.08614551,0.00020822,2]
[313173688,1706880643679,-200.0,0.00021,2]
[313173689,1706880643688,-200.0,0.00022,2]
[313173690,1706880643698,-200.0,0.00022168,7]
[313173691,1706880643707,-1829.60430493,0.00022908,2]
[313173692,1706880643716,-2088.61407986,0.00022908,2]
[313173693,1706880643726,-300.0,0.00022908,2]
[313173694,1706880643735,-200.0,0.00023,2]
[313173695,1706880643746,-1060.79944069,0.00023108,2]
[313173696,1706880643755,-200.0,0.00024,2]
[313173697,1706880643765,-200.0,0.00025,2]
[313173698,1706880643774,-183.17223099,0.00025142,2]
[313173699,1706880643783,-200.0,0.00026,2]
[313173700,1706880643792,-2181.84214194,0.000267,2]
[313173701,1706880643802,-4222.8618608,0.00026799,2]
[313173702,1706880643811,-155.74216214,0.000268,2]
[313173703,1706880643821,-153.9751229,0.00026852,2]
[313173704,1706880643831,-200.0,0.00027,2]
[313173705,1706880643844,-2888.08791628,0.00027384,2]
[313173706,1706880643853,-500.0,0.00027393,2]
[313173707,1706880643863,-213.76447974,0.00027393,2]
[313173708,1706880643872,-302.40967996,0.00027394,2]
[313173709,1706880643881,-1581.70409938,0.00027395,2]
[313173710,1706880643891,-158.94714176,0.00027395,2]
[313173711,1706880643900,-155.17326081,0.00027395,2]
[313173712,1706880643909,-1268.40011716,0.00027395,2]
[313173713,1706880643918,-155.11028313,0.00027395,2]
[313173714,1706880643928,-495.02412602,0.00027395,2]
[313173715,1706880643937,-20928.42010266,0.00027395,2]
[313173716,1706880643946,-155.34044948,0.00027395,2]
[313173717,1706880643955,-2190.46812308,0.00027395,2]
[313173718,1706880643964,-904.55199849,0.00027395,2]
[313173719,1706880643973,-283.99630205,0.00027395,2]
[313173720,1706880643982,-262.41441764,0.00027395,2]
[313173721,1706880643991,-522.51939811,0.00027396,2]
[313173722,1706880644000,-429.75278267,0.00027397,2]
[313173723,1706880644009,-500.0,0.00027397,2]
[313173724,1706880644019,-154.98450155,0.00027397,2]
[313173725,1706880644028,-500.0,0.00027397,2]
[313173726,1706880644038,-500.0,0.00027397,2]
[313173727,1706880644048,-1000.0,0.00027397,2]
[313173728,1706880644057,-312.58126162,0.00027397,2]
[313173729,1706880644066,-500.0,0.00027397,2]
[313173730,1706880644077,-500.0,0.00027397,2]
[313173731,1706880644089,-151.0,0.00027397,2]
[313173732,1706880644099,-151.0,0.00027397,2]
[313173733,1706880644108,-151.0,0.00027397,2]
[313173734,1706880644117,-500.0,0.00027397,2]
[313173735,1706880644126,-500.0,0.00027397,2]
[313173736,1706880644135,-500.0,0.00027397,2]
[313173737,1706880644145,-500.0,0.00027397,2]
[313173738,1706880644154,-500.0,0.00027397,2]
[313173739,1706880644163,-500.0,0.00027397,2]
[313173740,1706880644172,-500.0,0.00027397,2]
[313173741,1706880644182,-500.0,0.00027397,2]
[313173742,1706880644192,-649.47000002,0.00027397,2]
[313173743,1706880644203,-500.0,0.00027397,2]
[313173744,1706880644213,-500.0,0.00027397,2]
[313173745,1706880644224,-500.0,0.00027397,2]
[313173746,1706880644234,-500.0,0.00027397,2]
[313173747,1706880644245,-500.0,0.00027397,2]
[313173748,1706880644257,-500.0,0.00027397,2]
[313173749,1706880644266,-500.0,0.00027397,2]
[313173750,1706880644275,-151.0,0.00027397,2]
[313173751,1706880644285,-500.0,0.00027397,2]
[313173752,1706880644295,-151.0,0.00027397,2]
[313173753,1706880644306,-151.0,0.00027397,2]
[313173754,1706880644315,-500.0,0.00027397,2]
[313173755,1706880644324,-204.84,0.00027397,2]
[313173756,1706880644334,-500.0,0.00027397,2]
[313173757,1706880644350,-500.0,0.00027397,2]
[313173758,1706880644360,-186.646892,0.00027397,2]
[313173759,1706880644370,-186.646892,0.00027397,2]
[313173760,1706880644381,-186.646892,0.00027397,2]
[313173761,1706880644391,-500.0,0.00027397,2]
[313173762,1706880644401,-186.646892,0.00027397,2]
[313173763,1706880644410,-186.646892,0.00027397,2]
[313173764,1706880644420,-186.646892,0.00027397,2]
[313173765,1706880644431,-500.0,0.00027397,2]
[313173766,1706880644441,-500.0,0.00027397,2]
[313173767,1706880644453,-500.0,0.00027397,2]
[313173768,1706880644463,-500.0,0.00027397,2]
[313173769,1706880644474,-500.0,0.00027397,2]
[313173770,1706880644484,-500.0,0.00027397,2]
[313173771,1706880644495,-687.13,0.00027397,2]
[313173772,1706880644505,-500.0,0.00027397,2]
[313173773,1706880644516,-4132.8,0.00027397,2]
[313173774,1706880644526,-500.0,0.00027397,2]
[313173775,1706880644537,-500.0,0.00027397,2]
[313173776,1706880644547,-500.0,0.00027397,2]
[313173777,1706880644557,-569.78,0.00027397,2]
[313173778,1706880644567,-500.0,0.00027397,2]
[313173779,1706880644578,-500.0,0.00027397,2]
[313173780,1706880644593,-500.0,0.00027397,2]
[313173781,1706880644603,-500.0,0.00027397,2]
[313173782,1706880644613,-837.58,0.00027397,2]
[313173783,1706880644622,-500.0,0.00027397,2]
[313173784,1706880644631,-151.0,0.00027397,2]
[313173785,1706880644640,-151.0,0.00027397,2]
[313173786,1706880644649,-674.9,0.00027397,2]
[313173787,1706880644658,-151.0,0.00027397,2]
[313173788,1706880644667,-500.0,0.00027397,2]
[313173789,1706880644677,-500.0,0.00027397,2]
[313173790,1706880644686,-643.8,0.00027397,2]
[313173791,1706880644699,-155.0,0.00027397,2]
[313173792,1706880644712,-460.01189534,0.00027397,2]
[313173793,1706880644725,-500.0,0.00027397,2]
[313173794,1706880644739,-151.0,0.00027397,2]
[313173795,1706880644752,-151.0,0.00027397,2]
[313173796,1706880644765,-151.0,0.00027397,2]
[313173797,1706880644777,-151.0,0.00027397,2]
[313173798,1706880644788,-151.0,0.00027397,2]
[313173799,1706880644800,-151.0,0.00027397,2]
[313173800,1706880644813,-151.0,0.00027397,2]
[313173801,1706880644826,-151.0,0.00027397,2]
[313173802,1706880644839,-500.0,0.00027397,2]
[313173803,1706880644852,-2771.19,0.00027397,2]
[313173804,1706880644864,-500.0,0.00027397,2]
[313173805,1706880644876,-500.0,0.00027397,2]
[313173806,1706880644889,-500.0,0.00027397,2]
[313173807,1706880644900,-553.01,0.00027397,2]
[313173808,1706880644912,-1142.79,0.00027397,2]
[313173809,1706880644924,-1074.93,0.00027397,2]
[313173810,1706880644935,-1032.13,0.00027397,2]
[313173811,1706880644946,-4962.91,0.00027397,2]
[313173812,1706880644957,-500.0,0.00027397,2]
[313173813,1706880644968,-500.0,0.00027397,2]
[313173814,1706880644980,-500.0,0.00027397,2]
[313173815,1706880644991,-500.0,0.00027397,2]
[313173816,1706880645003,-500.0,0.00027397,2]
[313173817,1706880645014,-500.0,0.00027397,2]
[313173819,1706880645024,-5987.74,0.00027397,2]
[313173821,1706880645036,-500.0,0.00027397,2]
[313173823,1706880645047,-769.62,0.00027397,2]
[313173824,1706880645058,-2550.0,0.000275,7]
[313173825,1706880645071,-151.0,0.000275,2]
[313173826,1706880645084,-186.646892,0.000275,2]
[313173828,1706880645096,-186.646892,0.000275,2]
[313173830,1706880645106,-72971.1962335,0.000275,3]
[313173835,1706880645353,-274.23645252,0.00019965,2]
[313173836,1706880645364,-4840.7832271,0.000275,3]
[313173837,1706880645573,155.02790502,0.00017968,3]
[313173851,1706880650058,628.96170338,0.00019966,5]
[313173856,1706880698449,978.75061234,0.00017968,2]
[313173857,1706880729294,2715.47631265,0.0001996,5]
[313173858,1706880736703,19794.1585799,0.00017968,2]
[313173859,1706880739364,621.90621018,0.00017968,2]
[313173860,1706880739936,24146.71932878,0.00017968,2]
[313173861,1706880740090,685.42083396,0.00017968,2]
[313173862,1706880752733,10312.75662013,0.00017968,2]
[313173864,1706880753372,688.25365763,0.00017968,2]
[313173865,1706880758258,658.84657843,0.00017968,2]
[313173866,1706880772822,10312.75662013,0.00017968,2]
[313173867,1706880789366,621.90621018,0.00017968,2]
[313173868,1706880793911,1111.57778213,0.00017968,2]
[313173869,1706880794712,10312.75662013,0.00017968,2]
[313173870,1706880797254,155.23581246,0.00017968,2]
[313173871,1706880802216,1651.04181906,0.00017968,2]
[313173873,1706880805511,155.39246349,0.00017968,2]
[313173874,1706880810725,10312.75662013,0.00017968,2]
[313173875,1706880811423,167.52132486,0.00017968,2]
[313173876,1706880816211,1651.04181906,0.00017968,2]
[313173877,1706880817140,1111.57778213,0.00017968,2]
[313173879,1706880830191,1767.62791634,0.00017968,2]
[313173880,1706880830721,10312.75662013,0.00017968,2]
[313173881,1706880837136,1111.57778213,0.00017968,2]
[313173882,1706880850732,1202.63248127,0.00017968,2]
[313173883,1706880850769,9110.12413886,0.00017968,2]
[313173884,1706880855146,1111.57778213,0.00017968,2]
[313173885,1706880868710,10312.75662013,0.00017968,2]
[313173886,1706880875261,1186.87127157,0.00017968,2]
[313173888,1706880888711,10312.75662013,0.00017968,2]
[313173890,1706880904729,10312.75662013,0.00017968,2]
[313173892,1706880924714,10312.75662013,0.00017968,2]
[313173893,1706880942717,5588.23665069,0.00017968,2]
[313173907,1706881373014,461.15255,0.00017427,2]
[313173908,1706881377188,1111.20311703,0.00017968,2]
[313173909,1706881385978,683.57454073,0.00017968,2]
[313173910,1706881393200,1144.80898006,0.00017968,2]
[313173911,1706881397989,380.4097394,0.00017413,2]
[313173912,1706881405979,683.57454073,0.00017968,2]
[313173913,1706881408236,2313.3641915,0.00017505,2]
[313173914,1706881422283,1018.70225881,0.00017968,2]
[313173915,1706881423994,322.00415734,0.00017968,2]
[313173916,1706881428827,152.86835164,0.00017878,2]
[313173918,1706881488015,12995.47353468,0.00017878,2]
[313173919,1706881491192,3000.0,0.00017769,2]
[313173922,1706881532295,1650.69999335,0.00017878,2]
[313173923,1706881545467,621.78202823,0.00017878,2]
[313173924,1706881548245,847.9883563,0.00017771,2]
[313173925,1706881552300,1651.04181906,0.00017878,2]
[313173926,1706881566698,621.90621018,0.00017878,2]
[313173927,1706881570889,155.0294556,0.00017878,2]
[313173928,1706881572296,1651.04181906,0.00017878,2]
[313173929,1706881583454,621.90621018,0.00017878,2]
[313173930,1706881588881,165.66899643,0.00017878,2]
[313173931,1706881590296,822.14441111,0.00017878,2]
[313173932,1706881599465,249.14383038,0.00017878,2]
[313173933,1706881604347,155.02790502,0.00017878,2]
[313173934,1706881620348,155.02790502,0.00017878,2]
[313173936,1706881623917,2277.5581132,0.00017857,2]
[313173944,1706881640358,229.89609447,0.00017878,2]
[313173945,1706881719600,1938.19509838,0.00016,5]
[313173946,1706881719634,13085.07212903,0.00016,5]
[313173947,1706881761029,24900.0,0.00017827,2]
[313173992,1706881832627,-155.02790502,0.00018039,3]
[313173994,1706881832637,-295.45050683,0.00018039,2]
[313173996,1706881832646,-2583.88359144,0.00018039,2]
[313173998,1706881832658,-235.65219532,0.00018039,2]
[313174000,1706881832667,-4822.4959041,0.00018039,2]
[313174001,1706881832676,-916.27149891,0.0001804,2]
[313174031,1706881838176,1362.08883033,0.00017827,5]
[313174063,1706881840282,-1933.47332083,0.00018038,2]
[313174064,1706881840292,-101.0038612,0.0001804,2]
[313174065,1706881840301,-155.23228967,0.00018041,2]
[313174066,1706881840310,-3060.54806493,0.00018041,2]
[313174152,1706881845998,-4913.78952683,0.00018041,2]
[313174153,1706881846011,-250.0,0.00018046,2]
[313174154,1706881846022,-164.932497,0.00019859,2]
[313174155,1706881846032,-4261.56948679,0.00019959,2]
[313174157,1706881846042,-584.73006207,0.00019965,2]
[313174166,1706881846235,-1520.58325373,0.00019965,2]
[313174167,1706881846245,-1247.02577253,0.00019965,2]
[313174168,1706881846254,-555.91897445,0.00019965,2]
[313174169,1706881846268,-921.2659903,0.00019966,2]
[313174170,1706881846278,-155.21760418,0.00019966,2]
[313174171,1706881846288,-366.047619,0.00019999,2]
[313174173,1706881846298,-2088.61407986,0.0002,2]
[313174174,1706881846308,-300.0,0.0002,2]
[313174176,1706881846317,-151.71831557,0.0002,2]
[313174177,1706881846327,-323.68814175,0.00020165,2]
[313174178,1706881846337,-200.0,0.00020166,2]
[313174179,1706881846346,-1829.60430493,0.00021,2]
[313174180,1706881846356,-2192.82183256,0.00023108,2]
[313174181,1706881846365,-156.63013089,0.00023108,2]
[313174182,1706881846375,-19018.084001,0.00024658,2]
[313174183,1706881846384,-499.42473756,0.00026286,5]
[313174185,1706881846394,-155.0294556,0.00027,2]
[313174187,1706881846403,-1644.39,0.00027384,3]
[313174189,1706881846413,-2849.7,0.00027384,3]
[313174190,1706881846422,-2374.75,0.00027386,3]
[313174191,1706881846431,-500.0,0.00027393,2]
[313174192,1706881846440,-20928.42010266,0.00027394,2]
[313174193,1706881846449,-155.41928144,0.00027395,2]
[313174195,1706881846459,-200.84520497,0.00027395,2]
[313174197,1706881846469,-1996.50298693,0.00027395,2]
[313174199,1706881846478,-295.25491079,0.00027395,2]
[313174200,1706881846488,-4822.4959041,0.00027395,2]
[313174201,1706881846498,-13850.23851334,0.00027396,2]
[313174202,1706881846511,-500.0,0.00027397,2]
[313174203,1706881846521,-296.2,0.00027397,2]
[313174204,1706881846531,-500.0,0.00027397,2]
[313174205,1706881846542,-500.0,0.00027397,2]
[313174206,1706881846552,-527.53,0.00027397,2]
[313174207,1706881846561,-406.69,0.00027397,2]
[313174208,1706881846572,-500.0,0.00027397,2]
[313174209,1706881846582,-500.0,0.00027397,2]
[313174210,1706881846591,-500.0,0.00027397,2]
[313174211,1706881846600,-646.78,0.00027397,2]
[313174212,1706881846610,-500.0,0.00027397,2]
[313174213,1706881846621,-500.0,0.00027397,2]
[313174214,1706881846631,-315.761136,0.00027397,2]
[313174215,1706881846641,-201.78,0.00027397,2]
[313174216,1706881846654,-500.0,0.00027397,2]
[313174217,1706881846664,-500.0,0.00027397,2]
[313174218,1706881846674,-355.08,0.00027397,2]
[313174219,1706881846683,-500.0,0.00027397,2]
[313174220,1706881846692,-477.48,0.00027397,2]
[313174221,1706881846708,-500.0,0.00027397,2]
[313174222,1706881846724,-500.0,0.00027397,2]
[313174223,1706881846734,-546.04,0.00027397,2]
[313174224,1706881846744,-500.0,0.00027397,2]
[313174225,1706881846754,-500.0,0.00027397,2]
[313174227,1706881846768,-500.0,0.00027397,2]
[313174228,1706881846778,-500.0,0.00027397,2]
[313174231,1706881846788,-849.9,0.00027397,2]
[313174232,1706881846798,-500.0,0.00027397,2]
[313174233,1706881846807,-500.0,0.00027397,2]
[313174234,1706881846818,-500.0,0.00027397,2]
[313174235,1706881846828,-500.0,0.00027397,2]
[313174236,1706881846987,-500.0,0.00027397,2]
[313174237,1706881846998,-500.0,0.00027397,2]
[313174238,1706881847010,-2655.73,0.00027397,2]
[313174239,1706881847019,-529.97,0.00027397,2]
[313174240,1706881847029,-1030.14,0.00027397,2]
[313174241,1706881847039,-155.0,0.00027397,2]
[313174242,1706881847048,-524.37619199,0.00027397,2]
[313174243,1706881847058,-1095.18,0.00027397,2]
[313174244,1706881847068,-500.0,0.00027397,2]
[313174245,1706881847078,-989.13,0.00027397,2]
[313174246,1706881847087,-351.45264411,0.00027397,2]
[313174247,1706881847096,-500.0,0.00027397,2]
[313174248,1706881847106,-500.0,0.00027397,2]
[313174249,1706881847115,-507.0,0.00027397,2]
[313174250,1706881847125,-500.0,0.00027397,2]
[313174251,1706881847135,-500.0,0.00027397,2]
[313174252,1706881847144,-4756.12,0.00027397,2]
[313174253,1706881847153,-500.0,0.00027397,2]
[313174254,1706881847163,-1000.0,0.00027397,2]
[313174255,1706881847172,-5738.25,0.00027397,2]
[313174256,1706881847181,-500.0,0.00027397,2]
[313174257,1706881847191,-296.02,0.00027397,2]
[313174258,1706881847201,-993.34,0.00027397,2]
[313174259,1706881847210,-500.0,0.00027397,2]
[313174260,1706881847220,-500.0,0.00027397,2]
[313174261,1706881847229,-658.5,0.00027397,2]
[313174262,1706881847239,-4198.23,0.00027397,2]
[313174263,1706881847248,-7436.11663182,0.000275,3]
[313174264,1706881847264,-1502.25,0.000275,3]
[313174265,1706881847275,-1590.47605833,0.000275,3]
[313174266,1706881847292,-472.55486556,0.000275,3]
[313174281,1706882024738,151.02718489,0.0002762,30]
[313174282,1706882024823,151.02718489,0.00027068,120]
[313174284,1706882031228,4302.9603598,0.0001631,2]
[313174286,1706882045202,7440.18854712,0.0001789,2]
[313174291,1706882139749,-155.02790502,0.00020998,4]
[313174292,1706882139769,-1200.49849964,0.00020999,2]
[313174293,1706882139790,-2715.47631265,0.00020999,5]
[313174294,1706882139810,-1400.95372899,0.00021,2]
[313174295,1706882139831,-250.0,0.00024457,2]
[313174296,1706882139850,-155.23228967,0.00024653,2]
[313174297,1706882139870,-3000.0,0.00025254,2]
[313174298,1706882139890,-4255.0011642,0.00025254,2]
[313174299,1706882139910,-174.9771623,0.00025753,2]
[313174300,1706882139930,-29014.6440109,0.0002637,2]
[313174301,1706882139952,-10272.1500177,0.00026524,2]
[313174302,1706882139972,-310.00309668,0.00027,2]
[313174303,1706882139996,-441.97720869,0.00027116,2]
[313174304,1706882140018,-2143.35,0.00027387,3]
[313174305,1706882140039,-1786.12,0.00027387,3]
[313174306,1706882140061,-1488.43,0.00027387,3]
[313174307,1706882140081,-1240.36,0.00027387,3]
[313174308,1706882140102,-10.79860356,0.00027395,2]
[313174338,1706882557954,151.02869545,0.00027131,30]
[313174339,1706882558042,151.02869545,0.00026589,120]
[313174352,1706882703712,24900.0,0.0001753,2]
[313174356,1706882817559,267.149069,0.00017518,2]
[313174371,1706882993304,151.03775944,0.00027353,30]
[313174372,1706882993373,151.03775944,0.00026806,120]
[313174414,1706883033957,-199.56931104,0.00018299,2]
[313174415,1706883033969,-155.03875969,0.000183,2]
[313174416,1706883033978,-1112.68769809,0.000183,2]
[313174417,1706883033987,-155.23228967,0.00018301,2]
[313174418,1706883033997,-1144.21896649,0.00018301,2]
[313174419,1706883034008,-14864.16489463,0.00018301,2]
[313174435,1706883037848,-2372.89810611,0.00018301,2]
[313174436,1706883037958,-1766.78114445,0.00018301,2]
[313174437,1706883037982,-1574.72488954,0.00018301,2]
[313174438,1706883037992,-2134.54935532,0.00018301,2]
[313174439,1706883038004,-2445.58499273,0.00018301,2]
[313174470,1706883043633,-261.59404657,0.000183,2]
[313174471,1706883043642,-155.03875969,0.000183,3]
[313174472,1706883043651,-2640.42594509,0.00018301,2]
[313174473,1706883043663,-753.77729862,0.00018301,2]
[313174474,1706883043672,-2693.30789332,0.00018302,5]
[313174489,1706883044096,-22.16841933,0.00018302,5]
[313174491,1706883044104,-961.10768265,0.00018302,2]
[313174493,1706883044116,-621.14291628,0.00018302,2]
[313174495,1706883044125,-1486.66147755,0.00018303,2]
[313174496,1706883044134,-2819.53578676,0.00018303,2]
[313174497,1706883044143,-500.0,0.00018304,2]
[313174499,1706883044152,-176.81034291,0.00018419,2]
[313174500,1706883044161,-1449.9397613,0.00018539,2]
[313174502,1706883044171,-1851.80654291,0.00019539,2]
[313174503,1706883044180,-1575.66012086,0.00019543,2]
[313174504,1706883044192,-1485.1533176,0.00019543,2]
[313174520,1706883048503,-715.48219024,0.00019543,2]
[313174521,1706883048513,-200.0,0.00020374,2]
[313174522,1706883048522,-245.5896049,0.0002051,2]
[313174523,1706883048531,-2664.66022457,0.00020546,5]
[313174524,1706883048540,-436.33095,0.000209,2]
[313174525,1706883048550,-280.0,0.00022411,7]
[313174526,1706883048559,-478.02129349,0.00023991,2]
[313174527,1706883048568,-391.0,0.00024652,7]
[313174528,1706883048577,-2088.61407986,0.00026589,2]
[313174529,1706883048587,-1469.10387267,0.00026589,2]
[313174530,1706883048596,-312.87729749,0.00026806,2]
[313174531,1706883048606,-280.25684936,0.00026806,2]
[313174532,1706883048615,-200.0,0.00027117,15]
[313174533,1706883048625,-323.0,0.00027117,15]
[313174534,1706883048635,-1000.0,0.0002733,3]
[313174535,1706883048645,-907.72017217,0.00027383,3]
[313174561,1706883130281,-1857.97900988,0.00018899,2]
[313174562,1706883130302,-139.02099012,0.000189,2]
[313174565,1706883196744,-1296.02828335,0.00018899,2]
[313174566,1706883196765,-147.57955574,0.000189,2]
[313174567,1706883196785,-219.39216091,0.000189,2]
[313174577,1706883316721,-155.03875969,0.00018899,3]
[313174578,1706883316743,-71.23962417,0.000189,2]
[313174579,1706883328471,-311.193866,0.00023198,2]
[313174580,1706883328492,-199.56931104,0.00023891,2]
[313174581,1706883328513,-2819.53578676,0.00023891,2]
[313174582,1706883328534,-562.60505917,0.00023891,2]
[313174583,1706883328556,-741.79179873,0.00023892,2]
[313174584,1706883328575,-1486.66147755,0.00023893,2]
[313174585,1706883328596,-155.03875969,0.00023893,2]
[313174586,1706883328616,-2715.47631265,0.00023895,5]
[313174587,1706883328637,-286.60054586,0.000239,2]
[313174588,1706883328657,-37028.48161745,0.00024497,2]
[313174589,1706883328679,-1001.0,0.00024498,3]
[313174590,1706883328700,-1908.84,0.00024498,3]
[313174591,1706883328721,-1590.7,0.00024498,3]
[313174592,1706883328742,-24900.0,0.00024509,2]
[313174593,1706883328762,-3854.8264069,0.00024608,2]
[313174594,1706883328781,-3306.98884826,0.00027119,2]
[313174595,1706883328801,-312.87729749,0.00027383,2]
[313174596,1706883328821,-2088.61407986,0.00027383,2]
[313174597,1706883328840,-765.40311766,0.00027383,2]
[313174598,1706883328860,-280.25684936,0.00027383,2]
[313174599,1706883328879,-181.26836622,0.00027391,2]
[313174600,1706883328898,-159.01858397,0.00027391,2]
[313174601,1706883328920,-1340.76115237,0.00027391,2]
[313174602,1706883328940,-262.76233732,0.00027391,2]
[313174603,1706883328962,-260.71148909,0.00027391,2]
[313174604,1706883328982,-174.97716238,0.00027391,2]
[313174605,1706883329002,-309.98450155,0.00027392,2]
[313174606,1706883329021,-1512.18464966,0.00027393,2]
[313174607,1706883329041,-5216.01545379,0.00027393,2]
[313174608,1706883329064,-14191.83077975,0.00027393,2]
[313174609,1706883329083,-500.0,0.00027393,2]
[313174610,1706883329103,-155.53472698,0.00027393,2]
[313174611,1706883329124,-261.40845485,0.00027393,2]
[313174612,1706883329145,-1581.15759983,0.00027393,2]
[313174613,1706883329164,-494.9489016,0.00027393,2]
[313174614,1706883329184,-3346.82931867,0.00027393,2]
[313174615,1706883329203,-18930.40431998,0.00027393,2]
[313174616,1706883329224,-1589.83788378,0.00027393,2]
[313174617,1706883329244,-440.48251379,0.00027393,2]
[313174618,1706883329265,-1268.83572051,0.00027393,2]
[313174619,1706883329286,-2041.75712479,0.00027394,2]
[313174620,1706883329307,-295.35270881,0.00027395,2]
[313174621,1706883329328,-1199.66846624,0.00027395,2]
[313174622,1706883329348,-161.28090304,0.00027395,2]
[313174623,1706883329370,-904.96914882,0.00027395,2]
[313174624,1706883329391,-1698.26983511,0.00027395,2]
[313174625,1706883329411,-1743.62109759,0.00027395,2]
[313174626,1706883329432,-1244.16147081,0.00027395,2]
[313174627,1706883329452,-213.76447974,0.00027395,2]
[313174628,1706883329473,-608.8922524,0.00027395,2]
[313174629,1706883329493,-879.52625151,0.00027396,2]
[313174630,1706883329513,-18481.43005983,0.00027396,2]
[313174631,1706883329534,-500.0,0.00027397,2]
[313174632,1706883329553,-500.0,0.00027397,2]
[313174633,1706883329574,-500.0,0.00027397,2]
[313174634,1706883329593,-1000.0,0.00027397,2]
[313174635,1706883329613,-500.0,0.00027397,2]
[313174636,1706883329633,-500.0,0.00027397,2]
[313174637,1706883329654,-523.29,0.00027397,2]
[313174638,1706883329677,-513.4267534,0.00027397,2]
[313174639,1706883329698,-323.44904625,0.00027397,2]
[313174640,1706883329719,-500.0,0.00027397,2]
[313174641,1706883329740,-529.43423216,0.00027397,2]
[313174642,1706883329762,-431.29414339,0.00027397,2]
[313174643,1706883329782,-308.52584193,0.00027397,2]
[313174644,1706883329802,-500.0,0.00027397,2]
[313174645,1706883329823,-554.28759638,0.00027397,2]
[313174646,1706883329843,-155.0,0.00027397,2]
[313174647,1706883329864,-500.0,0.00027397,2]
[313174648,1706883329887,-500.0,0.00027397,2]
[313174649,1706883329907,-500.0,0.00027397,2]
[313174650,1706883329929,-362.18353728,0.00027397,2]
[313174651,1706883347714,1441.86026478,0.0002,2]
[313174655,1706883443866,-620.54726188,0.00022996,2]
[313174656,1706883443886,-155.0356582,0.00022997,2]
[313174657,1706883443912,-155.0356582,0.00022997,2]
[313174658,1706883443931,-1295.94446577,0.00022998,2]
[313174659,1706883443951,-240.68690192,0.00023,2]
[313174660,1706883443974,-155.03875969,0.00024507,4]
[313174661,1706883444110,-765.40311766,0.00025,2]
[313174662,1706883445988,629.30817668,0.00022995,2]
[313174666,1706883497700,151.03322731,0.00028577,120]
[313174667,1706883509954,-2042.80747063,0.00024648,2]
[313174668,1706883509974,-155.0356582,0.00024648,2]
[313174669,1706883509994,-1997.19391984,0.00024649,2]
[313174670,1706883510014,-500.0,0.00024649,2]
[313174671,1706883510035,-689.35318607,0.00024649,2]
[313174672,1706883510057,-651.3516216,0.0002465,2]
[313174673,1706883510080,-155.0356582,0.00024651,4]
[313174674,1706883510106,-310.22248546,0.00024998,2]
[313174677,1706883576761,-2715.47631265,0.00022994,5]
[313174678,1706883576785,-199.56931104,0.00022994,2]
[313174679,1706883576807,-3752.26075738,0.00022994,2]